Cogmind - Beta 11.1 @@@ ROGUE MODE // 2022.05.01 @ 18:56:27 // Winter2019/RPGLIKE Player: Kiks Result: Self-destructed Performance ------------- Evolutions (7) 3500 Regions Visited (29) 5800 Robots Destroyed (768) 3840 Value Destroyed (35230) 35230 Prototype IDs (242) 4840 Alien Tech Used (1) 200 Bonus (26768) 26768 TOTAL SCORE: 80178 Bonus ------- Triggered High Security 1000 Triggered Max Security 1000 High Alert Combat Kills 18823 Follower Combat Kills 836 Network Hubs Disabled 200 Aligned with FarCom 300 Met Data Miner 300 Used Data Conduit 3000 Met Zhirov 300 Met Warlord at Base 500 MAIN.C Attacked Warlord 500 Warlord Defense Kill 100 Built Enhanced Grunts 300 Met R17 at Cetus 500 Pursued by Intercept 500 Friendly Fire -1391 Cogmind --------- Core Integrity 119/1000 Matter 395/600 Energy 700/700 System Corruption 2% Temperature Cool (18) Movement Walking (102) Location -3/Testing Parts ------- > --- POWER (2) -------- Vortex Chain Reactor > --- PROPULSION (5) --- Flexi-carbon Leg Enhanced Biometal Leg Enhanced Biometal Leg Enhanced Biometal Leg Experimental Myomer Leg > --- UTILITY (10) ----- Improved Matter Compressor Core Analyzer Armor Integrity Analyzer Recoil Stabilizer Improved Kinecellerator Improved Medium Armor Plating System Mapper Advanced System Shield Advanced System Restoration Module > --- WEAPON (7) ------- Railgun Railgun XL Autogun Array > --- INVENTORY (3) ---- Protomatter-61 Experimental Hardlight Generator Transdimensional Reconstructor Peak State ------------ > --- POWER ------------ Vortex Chain Reactor > --- PROPULSION ------- Flexi-carbon Leg Enhanced Biometal Leg Enhanced Biometal Leg Enhanced Biometal Leg Experimental Myomer Leg > --- UTILITY ---------- Improved Matter Compressor Core Analyzer Armor Integrity Analyzer Recoil Stabilizer Improved Kinecellerator Experimental Hardlight Generator System Mapper Advanced System Shield Advanced System Restoration Module Long-range Tractor Beam > --- WEAPON ----------- Linked Autogun XL Autogun Array Multirail > --- INVENTORY -------- Protomatter Improved Medium Armor Plating Transdimensional Reconstructor [Rating: 185] Favorites ----------- Power Light Angular Momentum Engine Engine Light Angular Momentum Engine Power Core Light Nuclear Core Reactor Vortex Chain Reactor Propulsion Enhanced Biometal Leg Leg Enhanced Biometal Leg Hover Unit Cooled Aerolev Unit Utility Core Analyzer Device Long-range Tractor Beam Storage Matter Compressor Processor Core Analyzer Hackware System Mapper Protection Improved Medium Armor Plating Weapon XL Autogun Array Ballistic Gun XL Autogun Array Launcher Grenade Launcher Piercing Weapon Vortex Lance Build | -11 -10 -10 -9 -9 -9 -8 -8 -7 -7 -7 -7 -6 -6 -6 -6 -6 -6 -5 -5 -5 -5 -4 -4 -4 -4 -4 -3 -3 -3 ------- Run | Scr Mat Min Mat Min Exi Min Mat Fac Low Low Dat Pro Fac Ext Cet Arc Hub Fac Upp Upp War Pro Fac Upp Upp Zhi Pro Res Tes Slots Evolved 20 | 3 1 . 6 1 . 1 2 1 . . . 1 . . . . 1 . 1 . . . . . 1 . . . 1 Power 1 | . . . . . . . . 1 . . . . . . . . . . . . . . . . . . . . . Propulsion 4 | 1 1 . 1 1 . . . . . . . . . . . . . . . . . . . . . . . . . Utility 9 | 1 . . 3 . . 1 1 . . . . 1 . . . . 1 . . . . . . . 1 . . . . Weapon 6 | 1 . . 2 . . . 1 . . . . . . . . . . . 1 . . . . . . . . . 1 Parts Attached 126 | 6 8 1 8 6 1 . 23 21 2 . . 1 10 1 3 . 10 3 . . 5 . 3 1 . 2 . 2 9 Power 15 | 1 . 1 1 . . . 2 1 1 . . . . . 3 . 3 1 . . 1 . . . . . . . . Engine 6 | 1 . . 1 . . . 2 . . . . . . . 1 . 1 . . . . . . . . . . . . Core 4 | . . 1 . . . . . 1 1 . . . . . 1 . . . . . . . . . . . . . . Reactor 5 | . . . . . . . . . . . . . . . 1 . 2 1 . . 1 . . . . . . . . Propulsion 42 | 2 3 . 2 2 . . 13 5 . . . . 8 . . . 3 . . . 2 . 1 . . . . 1 . Treads . | . . . . . . . . . . . . . . . . . . . . . . . . . . . . . . Leg 15 | 2 . . . . . . 6 . . . . . . . . . 3 . . . 2 . 1 . . . . 1 . Wheel . | . . . . . . . . . . . . . . . . . . . . . . . . . . . . . . Hover 27 | . 3 . 2 2 . . 7 5 . . . . 8 . . . . . . . . . . . . . . . . Flight . | . . . . . . . . . . . . . . . . . . . . . . . . . . . . . . Utility 47 | 1 1 . 2 2 . . 6 14 . . . 1 2 1 . . 4 2 . . 1 . 2 1 . 2 . . 5 Device 23 | 1 . . . 1 . . 4 7 . . . . 1 1 . . 1 1 . . . . 2 1 . . . . 3 Storage 6 | . 1 . . . . . . 2 . . . . 1 . . . 1 . . . . . . . . 1 . . . Processor 6 | . . . 1 1 . . . 2 . . . 1 . . . . . 1 . . . . . . . . . . . Hackware 3 | . . . . . . . . 1 . . . . . . . . . . . . 1 . . . . 1 . . . Protection 9 | . . . 1 . . . 2 2 . . . . . . . . 2 . . . . . . . . . . . 2 Artifact . | . . . . . . . . . . . . . . . . . . . . . . . . . . . . . . Weapon 22 | 2 4 . 3 2 1 . 2 1 1 . . . . . . . . . . . 1 . . . . . . 1 4 Energy Gun . | . . . . . . . . . . . . . . . . . . . . . . . . . . . . . . Energy Cannon . | . . . . . . . . . . . . . . . . . . . . . . . . . . . . . . Ballistic Gun 19 | 2 2 . 3 2 1 . 2 1 1 . . . . . . . . . . . . . . . . . . 1 4 Ballistic Cannon . | . . . . . . . . . . . . . . . . . . . . . . . . . . . . . . Launcher 2 | . 2 . . . . . . . . . . . . . . . . . . . . . . . . . . . . Special Weapon . | . . . . . . . . . . . . . . . . . . . . . . . . . . . . . . Impact Weapon . | . . . . . . . . . . . . . . . . . . . . . . . . . . . . . . Slashing Weapon . | . . . . . . . . . . . . . . . . . . . . . . . . . . . . . . Piercing Weapon 1 | . . . . . . . . . . . . . . . . . . . . . 1 . . . . . . . . Special Melee Weapon . | . . . . . . . . . . . . . . . . . . . . . . . . . . . . . . Unidentified Prototypes 10 | . . . 1 . . . 1 2 . . . . . . . . . . . . 2 . . . . 1 . 1 2 Corrupted Parts 1 | . . . . . . . . . . . . . . . . . 1 . . . . . . . . . . . . System Corruption 3 | . . . . . . . . . . . . . . . . . 3 . . . . . . . . . . . . Parts Lost 1 | . . . . . . . . . . . . . . . . . 1 . . . . . . . . . . . . Power . | . . . . . . . . . . . . . . . . . . . . . . . . . . . . . . Propulsion . | . . . . . . . . . . . . . . . . . . . . . . . . . . . . . . Utility 1 | . . . . . . . . . . . . . . . . . 1 . . . . . . . . . . . . Weapon . | . . . . . . . . . . . . . . . . . . . . . . . . . . . . . . Highest Loss Streak 1 | . . . . . . . . . . . . . . . . . 1 . . . . . . . . . . . . To Critical Strikes . | . . . . . . . . . . . . . . . . . . . . . . . . . . . . . . Average Slot Usage (%) 83 | . 96 100 92 98 89 75 75 76 81 84 84 84 85 85 84 85 83 84 82 81 81 78 79 81 80 79 82 80 80 Engine 2 | . 13 2 1 6 6 6 5 5 5 5 5 5 5 5 5 5 4 . . . . . . . . . . . . Core 1 | . . 9 9 . . . . 1 5 5 5 5 5 5 4 5 3 . . . . . . . . . . . . Reactor 3 | . . . . . . . . . . . . . . . . . 1 9 9 9 7 4 4 4 4 4 4 4 4 Leg 10 | . 26 . . . . . 12 . . . . . . . . . 3 14 13 13 14 19 20 22 21 21 21 21 20 Hover 14 | . 1 37 33 32 33 31 14 26 26 26 26 25 25 25 25 25 20 9 9 9 7 . . . . . . . . Device 15 | . 13 12 10 12 13 12 20 16 15 15 15 15 18 20 20 20 20 19 18 18 17 13 13 13 13 13 13 13 16 Storage 5 | . 11 12 10 6 6 6 5 4 5 5 5 5 5 5 5 5 4 4 4 4 4 4 4 4 4 4 4 4 4 Processor 9 | . . . 1 6 6 6 5 10 10 10 10 12 11 10 10 10 9 13 13 13 13 13 13 13 13 13 13 13 8 Hackware 1 | . . . . . . . . . . . . . . . . . . . . . . 4 4 4 4 5 8 8 8 Protection 3 | . . . . 6 6 6 5 5 5 5 5 5 5 5 5 5 4 4 4 4 4 4 4 4 4 4 4 4 3 Ballistic Gun 10 | . 7 25 23 25 15 6 5 5 7 10 10 10 10 10 10 10 9 9 9 9 9 9 9 9 8 8 8 8 13 Naked Turns . | . . . . . . . . . . . . . . . . . . . . . . . . . . . . . . Heaviest Build 97 | 8 12 12 27 31 34 34 37 45 50 50 50 50 54 54 53 53 69 68 68 68 79 77 79 78 78 78 77 80 97 Greatest Support 150 | 20 21 21 27 34 34 34 95 45 50 50 50 55 58 55 55 55 100 100 100 100 150 150 145 145 145 145 145 145 145 Greatest Overweight (x) 3 | . 1 . . . . . 3 1 . . . . 1 . . . . . . . . . . . . . . . . Average Overweight (x) . | . . . . . . . . . . . . . . . . . . . . . . . . . . . . . . Largest Inventory Capacity 3 | 3 3 3 3 3 3 3 3 3 3 3 3 3 3 3 3 3 3 3 3 3 3 3 3 3 3 3 3 3 3 Average Capacity 2 | 2 3 3 3 3 3 3 3 3 3 3 3 3 3 3 3 3 3 3 3 3 3 3 3 3 3 3 3 3 3 Most Carried 3 | . 3 3 3 3 3 3 3 3 3 3 3 3 3 3 3 3 3 2 . 2 3 3 3 3 3 3 3 3 3 Average Carried 2 | . 2 2 3 2 3 3 2 2 3 3 3 2 2 3 3 3 2 . . 1 2 3 3 3 3 3 3 3 3 Final Capacity 3 | 3 3 3 3 3 3 3 3 3 3 3 3 3 3 3 3 3 3 3 3 3 3 3 3 3 3 3 3 3 3 Final Carried 3 | . 2 3 3 3 3 3 3 3 3 3 3 3 3 3 3 3 2 . . 2 3 3 3 3 3 3 3 3 3 Class Distribution -------------------- 26% | Hacker-Executioner 25% | Gunner 21% | Scavenger-Gunner 11% | Scavenger-Executioner 10% | Mutant 3% | Commander-Gunner Dominant Class ---------------- Mutant | -10/Materials Mutant | -10/Mines Mutant | -9/Materials Scavenger-Gunner | -9/Mines Gunner | -9/Exiles Gunner | -8/Mines Scavenger-Gunner | -8/Materials Gunner | -7/Factory Gunner | -7/Lower Caves Gunner | -7/Lower Caves Gunner | -7/Data Miner Gunner | -6/Proximity Caves Gunner | -6/Factory Gunner | -6/Extension Commander-Gunner | -6/Cetus Commander-Gunner | -6/Archives Commander-Gunner | -6/Hub_04(d) Scavenger-Gunner | -5/Factory Scavenger-Executioner | -5/Upper Caves Scavenger-Executioner | -5/Upper Caves Scavenger-Executioner | -5/Warlord Hacker-Executioner | -4/Proximity Caves Hacker-Executioner | -4/Factory Hacker-Executioner | -4/Upper Caves Hacker-Executioner | -4/Upper Caves Hacker-Executioner | -4/Zhirov Hacker-Executioner | -3/Proximity Caves Hacker-Executioner | -3/Research Hacker-Executioner | -3/Testing Resources | -11 -10 -10 -9 -9 -9 -8 -8 -7 -7 -7 -7 -6 -6 -6 -6 -6 -6 -5 -5 -5 -5 -4 -4 -4 -4 -4 -3 -3 -3 ----------- Run | Scr Mat Min Mat Min Exi Min Mat Fac Low Low Dat Pro Fac Ext Cet Arc Hub Fac Upp Upp War Pro Fac Upp Upp Zhi Pro Res Tes Matter Collected 21669 | 278 513 310 900 171 . 280 1618 1582 292 285 190 447 1162 1518 493 95 2414 1010 399 418 103 230 1040 443 342 377 456 864 3439 Remotely 20955 | 139 513 310 900 163 . 280 1592 1041 292 285 190 447 1162 1518 493 95 2414 1010 399 418 103 230 1040 443 342 377 456 864 3439 Salvage Created 37604 | 61 427 353 1478 49 . 307 1988 2248 682 456 372 880 2238 2685 841 212 5011 1863 486 767 . 256 1780 1002 638 499 1045 1732 7248 Parts 1938 | 3 25 34 100 10 . 41 135 142 23 11 17 24 102 129 38 20 234 117 31 21 1 21 97 41 36 5 53 69 358 Haulers Intercepted 34 | . 2 . 5 . . . 3 7 . . . . 3 . . . 6 2 . . . . 4 . . . . 2 . Recyclers Shooed 10 | . . 1 5 . . . 2 . . . . . 2 . . . . . . . . . . . . . . . . Parts Field Recycled . | . . . . . . . . . . . . . . . . . . . . . . . . . . . . . . Retrieved Matter . | . . . . . . . . . . . . . . . . . . . . . . . . . . . . . . Parts Self-Destructed 340 | . . . . . . . . . 26 11 . 24 . . . . . . 31 18 78 19 . 36 42 2 53 . . Prevented . | . . . . . . . . . . . . . . . . . . . . . . . . . . . . . . Kills | -11 -10 -10 -9 -9 -9 -8 -8 -7 -7 -7 -7 -6 -6 -6 -6 -6 -6 -5 -5 -5 -5 -4 -4 -4 -4 -4 -3 -3 -3 ------- Run | Scr Mat Min Mat Min Exi Min Mat Fac Low Low Dat Pro Fac Ext Cet Arc Hub Fac Upp Upp War Pro Fac Upp Upp Zhi Pro Res Tes Combat Hostiles Destroyed 607 | . 11 10 27 2 . 10 36 34 8 8 4 16 28 51 13 4 66 34 11 9 1 7 28 16 12 . 19 20 122 Guns 584 | . 1 10 27 2 . 10 36 34 8 8 4 16 22 51 13 4 66 34 11 9 1 7 22 16 12 . 19 20 121 AOE 23 | . 10 . . . . . . . . . . . 6 . . . . . . . . . 6 . . . . . 1 Classes Destroyed 29 | 1 5 1 3 . . . 2 4 2 1 . . 2 1 . . . 1 . . . 1 . . . . . . 5 Worker 33 | . 2 3 1 2 . 4 4 7 . . . . 6 . . . 3 . . . . . 1 . . . . . . Builder 28 | . . . 3 . . 2 5 7 . . . . 5 2 . . 2 1 . . . . 1 . . . . . . Tunneler 8 | . . 1 . 1 . 2 . 1 . . . . 1 . . . 1 . . . . . 1 . . . . . . Hauler 34 | . 2 . 5 . . . 3 7 . . . . 3 . . . 6 2 . . . . 4 . . . . 2 . Recycler 21 | 1 2 2 2 . . . 5 3 . . . . 4 . . . 2 . . . . . . . . . . . . Carrier 1 | . . . . . . . . . . . . . 1 . . . . . . . . . . . . . . . . Minesweeper 2 | . . . . . . . . . 1 . . . . . . . . . 1 . . . . . . . . . . Mechanic 10 | . . . . . . . . . . . . . . . . . . 1 . . . . 2 . . . . . 7 Operator 15 | . . . . . . . 1 2 . . . . 2 . . . 3 2 . . . . 3 . . . . 2 . Watcher 31 | . 2 . 1 . . . 5 4 . . . . . 2 2 . 3 4 . . . . 5 . . . . 2 1 Swarmer 103 | . 3 6 3 . . 10 13 9 2 1 . 4 4 7 2 . . 4 2 2 . 4 9 10 1 . 3 4 . Cutter 5 | . . . . . . . . 2 . . . . . . . . 3 . . . . . . . . . . . . Saboteur 8 | . . . . . . . . . . . . . . 1 . . 3 . . . . . . . . . . . 4 Grunt 243 | . 8 4 16 2 . . 12 12 6 3 . 8 15 16 6 . 32 12 4 5 1 . 7 3 3 . 8 4 56 Brawler 26 | . . . 1 . . . . 1 . 1 . . 1 . . . 6 . . . . . 2 . 2 . 3 1 8 Duelist 26 | . . . . . . . . 2 . . . 1 2 5 . . 2 1 . 1 . . 1 . 1 . 1 . 9 Protector 14 | . . . . . . . . . . . . . 1 . . . 3 1 . . . . . . . . . . 9 Researcher 1 | . . . . . . . . . . . . . . . . . . . . . . . . . . . . . 1 Sentry 68 | . . . 7 . . . 10 4 . 1 . 1 2 5 . 4 9 3 2 1 . . 5 . 2 . 1 5 6 Specialist 3 | . . . . . . . . . . . . . . . . . . . . . . . . . . . . . 3 Hunter 35 | . . . . . . . . 1 . 1 . . 3 1 . . 2 4 1 . . 2 2 2 3 . 2 2 9 Programmer 30 | . . . . . . . . 2 . . . 1 . 1 . . . 8 1 . . . 2 1 . . . . 14 Heavy 5 | . . . . . . . 1 1 . . . . . . . . 2 1 . . . . . . . . . . . Behemoth 7 | . . . . . . . . . . 1 . 1 . 1 . . 1 . 1 . . 1 . . . . 1 . . Cetus Guard 5 | . . . . . . . . . . . . . . . 5 . . . . . . . . . . . . . . Enhanced Grunt 6 | . . . . . . . . . . . 4 . . . . . 2 . . . . . . . . . . . . Lightning 3 | . . . . . . . . . . . . . . . . . 3 . . . . . . . . . . . . Tracker 2 | . . . . . . . . . . . . . . . . . . . . . . . . . . . . 2 . Combat Programmer 2 | . . . . . . . . . . . . . . . . . . . . . . . . . . . . 2 . Investigator 1 | . . . . . . . . . . . . . . . . . . . . . . . . . . . . . 1 Striker 1 | . . . . . . . . . . . . . . . . . . . . . . . . . . . . . 1 Executioner 2 | . . . . . . . . . . . . . . . . . . . . . . . . . . . . . 2 Alpha 7 1 | . . . . . . . . . . . . . . . . . . . . . . . . . . . . . 1 Samaritan 2 | . . . . . . . . . 1 . . . . . . . . . . 1 . . . . . . . . . Tinkerer 1 | . . . . . . . . . . . . . . . . . . . . . . 1 . . . . . . . Thug 5 | . . . . . . . . . . . . . . 5 . . . . . . . . . . . . . . . Savage 2 | . . . . . . . . . . . . . . 2 . . . . . . . . . . . . . . . Butcher 4 | . . . . . . . . . . . . . . 4 . . . . . . . . . . . . . . . Guerrilla 3 | . . . . . . . . . . . . . . 3 . . . . . . . . . . . . . . . Best Kill Streak 40 | 1 7 6 12 3 . 12 12 11 4 3 4 11 32 23 26 4 24 15 7 3 1 4 11 5 9 . 9 5 40 Combat Bots Only 37 | . 5 6 7 2 . 7 9 9 4 3 4 11 11 23 25 4 19 14 7 3 1 4 7 5 9 . 9 4 37 Max Kills in Single Turn 4 | 1 3 2 3 2 . 2 2 3 2 2 1 2 4 2 2 1 2 2 2 1 1 2 4 2 1 . 2 2 3 Gunslinging 1 | . . 1 1 1 . . . . . 1 . 1 1 1 1 . 1 1 1 . . 1 . 1 . . 1 1 1 Exploded 4 | . 3 . . . . . . . . . . . 3 . . . . . . . . . 4 . . . . . 1 Melee . | . . . . . . . . . . . . . . . . . . . . . . . . . . . . . . Uniques/NPCs Destroyed . | . . . . . . . . . . . . . . . . . . . . . . . . . . . . . . Combat | -11 -10 -10 -9 -9 -9 -8 -8 -7 -7 -7 -7 -6 -6 -6 -6 -6 -6 -5 -5 -5 -5 -4 -4 -4 -4 -4 -3 -3 -3 -------- Run | Scr Mat Min Mat Min Exi Min Mat Fac Low Low Dat Pro Fac Ext Cet Arc Hub Fac Upp Upp War Pro Fac Upp Upp Zhi Pro Res Tes Damage Taken 11910 | . 265 395 1439 109 . 36 436 648 57 329 314 330 135 222 72 47 2217 362 378 162 . 264 274 130 198 . 292 396 2403 Core 8949 | . 212 321 1158 78 . 21 330 489 39 248 205 211 100 164 40 37 1696 299 296 124 . 203 210 106 133 . 206 291 1732 Absorbed by Shields 1058 | . . . . . . . . . . . . . . 128 67 . . . . . . . . . . . . . 863 Redirected to Core 7486 | . 177 240 952 65 . 21 258 378 39 248 155 211 100 148 28 37 1411 182 228 87 . 180 167 78 133 . 165 270 1528 Core Remaining (%) 88 | 100 . 100 . . . 99 100 . . . . 79 . . . . 39 . . . . 97 . . . . 96 . . Volleys Fired 1145 | 3 32 44 113 7 . 18 95 91 16 15 10 23 48 80 25 5 121 52 21 22 3 13 55 22 17 3 24 44 123 Largest 4 | 2 2 2 3 4 . 1 1 1 2 2 2 2 2 2 2 2 2 2 2 2 2 2 2 2 2 2 2 2 4 Hottest 175 | 40 60 40 69 92 . 60 60 60 90 90 90 90 90 90 90 90 90 90 90 90 90 90 90 90 90 90 90 90 175 Shots Fired 2219 | 6 55 88 248 25 . 18 95 91 24 30 20 46 96 157 47 10 243 102 42 44 5 22 108 44 34 6 48 78 387 Gun 2182 | 6 18 88 248 25 . 18 95 91 24 30 20 46 96 157 47 10 243 102 42 44 5 22 108 44 34 6 48 78 387 Cannon . | . . . . . . . . . . . . . . . . . . . . . . . . . . . . . . Launcher 37 | . 37 . . . . . . . . . . . . . . . . . . . . . . . . . . . . Special . | . . . . . . . . . . . . . . . . . . . . . . . . . . . . . . Kinetic 2182 | 6 18 88 248 25 . 18 95 91 24 30 20 46 96 157 47 10 243 102 42 44 5 22 108 44 34 6 48 78 387 Thermal . | . . . . . . . . . . . . . . . . . . . . . . . . . . . . . . Explosive 37 | . 37 . . . . . . . . . . . . . . . . . . . . . . . . . . . . Electromagnetic . | . . . . . . . . . . . . . . . . . . . . . . . . . . . . . . Robot Hit Streak 77 | 5 9 12 13 5 . 4 13 26 16 17 8 27 77 48 21 19 30 45 50 47 10 19 18 11 24 7 32 26 40 Robot Miss Streak 6 | 1 3 5 5 4 . 4 6 4 3 3 1 2 2 2 2 1 4 2 2 2 . 5 4 3 2 1 2 2 3 Penetration Max 2 | . . . . . . . . . . . . . . . . . . . . . . . . . . . . . 2 Secondary Targets 74 | . . 1 7 1 . . . . . 1 . 2 4 3 2 . 5 1 2 . . 1 1 3 1 . 4 1 34 Max Gunslinging Chain 2 | . . 1 2 1 . . . . . 1 . 1 1 1 1 . 1 1 1 . . 1 1 1 1 . 1 1 2 Shots Hit Robots 1707 | 5 28 49 158 11 . 18 86 75 18 24 14 40 68 115 43 10 198 77 37 41 1 17 73 33 28 6 44 52 338 Core Hits 1525 | 2 30 23 67 6 . 18 76 91 17 14 16 29 79 102 35 9 178 69 24 24 2 15 73 30 27 6 42 55 366 Critical Kills 7 | . . . 2 . . . . . . . . . 1 1 1 . 1 . . . . . . . . . . . 1 Critical Parts Destroyed 5 | . . . 1 . . . . . . . . . . . . . . . . . . . . . . . . . 4 Critical Strikes 12 | . . . 3 . . . . . . . . . 1 1 1 . 1 . . . . . . . . . . . 5 Destroy 12 | . . . 3 . . . . . . . . . 1 1 1 . 1 . . . . . . . . . . . 5 Melee Attacks 1 | . . . . . . . . . . . . . . . . . . . . . 1 . . . . . . . . Impact . | . . . . . . . . . . . . . . . . . . . . . . . . . . . . . . Slashing . | . . . . . . . . . . . . . . . . . . . . . . . . . . . . . . Piercing . | . . . . . . . . . . . . . . . . . . . . . . . . . . . . . . Entropic 1 | . . . . . . . . . . . . . . . . . . . . . 1 . . . . . . . . Sneak Attacks . | . . . . . . . . . . . . . . . . . . . . . . . . . . . . . . Combat Hostiles . | . . . . . . . . . . . . . . . . . . . . . . . . . . . . . . Follow-up Attacks . | . . . . . . . . . . . . . . . . . . . . . . . . . . . . . . Damage Inflicted 105354 | 58 1399 647 2286 174 . 644 4223 5316 1078 1578 1082 2718 6127 7993 2877 646 13621 5033 2522 2423 135 1159 5768 1558 1908 351 3285 4364 24381 Guns 100494 | 58 140 647 2286 174 . 644 4223 4933 1078 1578 1017 2718 4876 7993 2877 646 13492 4946 2522 2423 135 1159 4599 1558 1908 351 3285 4364 23864 Cannons . | . . . . . . . . . . . . . . . . . . . . . . . . . . . . . . Explosions 4791 | . 1255 . . . . . . 383 . . . . 1251 . . . 129 87 . . . . 1169 . . . . . 517 Melee . | . . . . . . . . . . . . . . . . . . . . . . . . . . . . . . Ramming 69 | . 4 . . . . . . . . . 65 . . . . . . . . . . . . . . . . . . Kinetic 100494 | 58 140 647 2286 174 . 644 4223 4933 1078 1578 1017 2718 4876 7993 2877 646 13492 4946 2522 2423 135 1159 4599 1558 1908 351 3285 4364 23864 Thermal 1611 | . 73 . . . . . . 272 . . . . 540 . . . . . . . . . 726 . . . . . . Explosive 3051 | . 1182 . . . . . . 111 . . . . 711 . . . . 87 . . . . 443 . . . . . 517 Electromagnetic 129 | . . . . . . . . . . . . . . . . . 129 . . . . . . . . . . . . Impact . | . . . . . . . . . . . . . . . . . . . . . . . . . . . . . . Slashing . | . . . . . . . . . . . . . . . . . . . . . . . . . . . . . . Piercing . | . . . . . . . . . . . . . . . . . . . . . . . . . . . . . . Highest Corruption 3 | . . . . . . . . 2 . . . . . 1 . . 3 . . . . . 1 . . . . . 3 Average Corruption 1 | . . . . . . . . 1 . . . . . 1 . . 1 . . . . . 1 . . . . . 1 Corruption Purged 16 | . . . . . . . . 3 . . . . . 1 . . 4 . . . . . 1 . . . . . 7 Corruption Blocked . | . . . . . . . . . . . . . . . . . . . . . . . . . . . . . . Effects 7 | . . . . . . . . 2 . . . . . . . . 1 . . . . . 1 . . . . . 3 Matter Fused 1 | . . . . . . . . . . . . . . . . . . . . . . . 1 . . . . . . Energy Discharges 1 | . . . . . . . . 1 . . . . . . . . . . . . . . . . . . . . . Data Loss (minor) 2 | . . . . . . . . 1 . . . . . . . . . . . . . . . . . . . . 1 Misfires 1 | . . . . . . . . . . . . . . . . . 1 . . . . . . . . . . . . Weapon Failures 2 | . . . . . . . . . . . . . . . . . . . . . . . . . . . . . 2 Overload Shots . | . . . . . . . . . . . . . . . . . . . . . . . . . . . . . . Overflow Damage 474 | . 41 . . . . . . 43 . . 55 . 97 . . . . . . . . . 229 . . . . . 9 Projectiles . | . . . . . . . . . . . . . . . . . . . . . . . . . . . . . . Explosions 419 | . 41 . . . . . . 43 . . . . 97 . . . . . . . . . 229 . . . . . 9 Melee 55 | . . . . . . . . . . . 55 . . . . . . . . . . . . . . . . . . Knockbacks . | . . . . . . . . . . . . . . . . . . . . . . . . . . . . . . Impact . | . . . . . . . . . . . . . . . . . . . . . . . . . . . . . . Kinetic . | . . . . . . . . . . . . . . . . . . . . . . . . . . . . . . Secondary . | . . . . . . . . . . . . . . . . . . . . . . . . . . . . . . Self-Inflicted Damage 656 | . 143 . 153 . . . . 229 . . 32 . . . . . 99 . . . . . . . . . . . . Shots 13 | . 5 . 2 . . . . 5 . . . . . . . . 1 . . . . . . . . . . . . Rammed 1 | . . . . . . . . . . . 1 . . . . . . . . . . . . . . . . . . Targets Rammed 2 | . 1 . . . . . . . . . 1 . . . . . . . . . . . . . . . . . . Kicked 1 | . 1 . . . . . . . . . . . . . . . . . . . . . . . . . . . . Crushed . | . . . . . . . . . . . . . . . . . . . . . . . . . . . . . . Highest Temperature 314 | . 15 50 254 97 . 248 288 . 2 16 6 14 10 46 46 23 114 54 66 54 27 21 51 42 42 21 42 63 314 Average Temperature 48 | . 9 18 63 30 . 93 122 . 1 2 2 2 1 23 24 23 31 29 29 30 27 21 23 21 22 21 24 25 103 Received Heat Transfer 2530 | . 54 192 486 21 . . 126 39 45 51 . 63 18 67 6 9 631 69 45 57 . . 48 . 9 . 54 45 395 Effects 3 | . . . . . . . 1 . . . . . . . . . . . . . . . . . . . . . 2 Energy Bleed 2 | . . . . . . . 1 . . . . . . . . . . . . . . . . . . . . . 1 Short Circuit 1 | . . . . . . . . . . . . . . . . . . . . . . . . . . . . . 1 Siege Activations . | . . . . . . . . . . . . . . . . . . . . . . . . . . . . . . Robots Corrupted 1 | . . . . . . . . . . . . . . . . . 1 . . . . . . . . . . . . Combat Hostiles . | . . . . . . . . . . . . . . . . . . . . . . . . . . . . . . Parts Fried 1 | . . . . . . . . . . . . . . . 1 . . . . . . . . . . . . . . Impact Corruptions 1 | . . . . . . . . . . . 1 . . . . . . . . . . . . . . . . . . Robots Melted . | . . . . . . . . . . . . . . . . . . . . . . . . . . . . . . Combat Hostiles . | . . . . . . . . . . . . . . . . . . . . . . . . . . . . . . Parts Melted 1 | . . . . . . . . . . . . . . . 1 . . . . . . . . . . . . . . Heat Transferred 1000 | . 50 . . . . . . 250 . . . . 300 . . . . . . . . . 400 . . . . . . Parts Sabotaged 3 | . . . . . . . . . . . . . . . . . . 2 . . . . . . . . . . 1 Parts Stolen . | . . . . . . . . . . . . . . . . . . . . . . . . . . . . . . Parts Stripped . | . . . . . . . . . . . . . . . . . . . . . . . . . . . . . . Power Chain Reactions 2 | . . . . . . . . 1 . . . . . . . . 1 . . . . . . . . . . . . Missiles Intercepted . | . . . . . . . . . . . . . . . . . . . . . . . . . . . . . . Alert | -11 -10 -10 -9 -9 -9 -8 -8 -7 -7 -7 -7 -6 -6 -6 -6 -6 -6 -5 -5 -5 -5 -4 -4 -4 -4 -4 -3 -3 -3 ------- Run | Scr Mat Min Mat Min Exi Min Mat Fac Low Low Dat Pro Fac Ext Cet Arc Hub Fac Upp Upp War Pro Fac Upp Upp Zhi Pro Res Tes Peak Influence 4907 | 5 631 385 550 324 . 321 1131 1786 . . . . 1337 2304 1954 990 3546 2461 . . . . 1372 . . . . 700 4907 Initial 1737 | . 3 105 85 214 . . 124 352 . . . . 233 654 1194 781 346 1737 . . . . 107 . . . . 283 165 Average 998 | 2 324 217 327 295 . 138 779 780 . . . . 750 1256 1590 959 2114 1746 . . . . 936 . . . . 229 3157 Maximum Alert Level 5 | . 2 1 2 1 . 1 4 5 . . . . 4 5 5 3 5 5 . . . . 4 . . . . 3 5 Low Security (%) 13 | 100 26 50 17 . . 78 2 . . . . . . . . . . . . . . . 8 . . . . 58 . Level 1 17 | . 23 49 55 100 . 21 5 9 . . . . 17 . . . 1 . . . . . 5 . . . . 21 . Level 2 17 | . 50 . 26 . . . 19 47 . . . . 32 13 . . 6 . . . . . 17 . . . . 17 . Level 3 15 | . . . . . . . 60 24 . . . . 16 34 . 100 18 . . . . . 22 . . . . 3 . Level 4 16 | . . . . . . . 12 13 . . . . 33 23 57 . 12 42 . . . . 46 . . . . . . Level 5 5 | . . . . . . . . 5 . . . . . 28 42 . 4 23 . . . . . . . . . . . High Security 6 | . . . . . . . . . . . . . . . . . 56 33 . . . . . . . . . . . Max Security 7 | . . . . . . . . . . . . . . . . . . . . . . . . . . . . . 99 Squads Dispatched 102 | . 2 . 5 . . . 5 8 . . . . 5 2 1 . 16 12 . . . . 5 . . . 1 7 33 Investigation 10 | . 1 . 1 . . . 1 . . . . . 1 1 1 . 2 . . . . . . . . . . 2 . Extermination 3 | . . . . . . . . 1 . . . . . . . . . 1 . . . . 1 . . . . . . Reinforcement 23 | . 1 . 4 . . . 2 4 . . . . 3 . . . 4 2 . . . . 1 . . . . 2 . Assault 52 | . . . . . . . . . . . . . 1 1 . . 8 8 . . . . 2 . . . 1 . 31 Garrison 11 | . . . . . . . 2 3 . . . . . . . . 2 1 . . . . 1 . . . . . 2 Intercept 3 | . . . . . . . . . . . . . . . . . . . . . . . . . . . . 3 . Searches Triggered . | . . . . . . . . . . . . . . . . . . . . . . . . . . . . . . Construction Impeded 1 | . . . . . . . . . . . . . 1 . . . . . . . . . . . . . . . . Haulers Reinforced 4 | . . . . . . . . 1 . . . . 1 . . . . 1 . . . . . . . . . 1 . Active Scanning Responses . | . . . . . . . . . . . . . . . . . . . . . . . . . . . . . . Cargo Convoy Interrupts . | . . . . . . . . . . . . . . . . . . . . . . . . . . . . . . Stealth | -11 -10 -10 -9 -9 -9 -8 -8 -7 -7 -7 -7 -6 -6 -6 -6 -6 -6 -5 -5 -5 -5 -4 -4 -4 -4 -4 -3 -3 -3 --------- Run | Scr Mat Min Mat Min Exi Min Mat Fac Low Low Dat Pro Fac Ext Cet Arc Hub Fac Upp Upp War Pro Fac Upp Upp Zhi Pro Res Tes Distress Signals 15 | . 2 . 4 . . . 2 . . . . . 1 1 . . 1 1 . . . . 1 . . . . 2 . Communications Jammed . | . . . . . . . . . . . . . . . . . . . . . . . . . . . . . . Distress Signals . | . . . . . . . . . . . . . . . . . . . . . . . . . . . . . . Times Spotted 707 | . 17 13 40 7 . 8 39 30 6 8 4 14 20 42 18 3 87 43 8 9 2 7 28 16 11 . 17 20 190 Peak Tracking Total 24 | . 6 3 7 2 . 4 5 4 4 3 3 3 4 4 4 1 11 8 4 3 6 4 4 4 7 . 7 4 24 Tactical Retreats 5 | . . 3 . 1 . . . . . . . . . . . . . . . . . . . . . . . . 1 Traps | -11 -10 -10 -9 -9 -9 -8 -8 -7 -7 -7 -7 -6 -6 -6 -6 -6 -6 -5 -5 -5 -5 -4 -4 -4 -4 -4 -3 -3 -3 ------- Run | Scr Mat Min Mat Min Exi Min Mat Fac Low Low Dat Pro Fac Ext Cet Arc Hub Fac Upp Upp War Pro Fac Upp Upp Zhi Pro Res Tes Traps Triggered 15 | . . . 1 . . . 1 5 . . . . . 4 . . 2 . . . . . . . . . . 2 . Indirectly . | . . . . . . . . . . . . . . . . . . . . . . . . . . . . . . Trap Hack Attempts . | . . . . . . . . . . . . . . . . . . . . . . . . . . . . . . Triggered . | . . . . . . . . . . . . . . . . . . . . . . . . . . . . . . Disarmed . | . . . . . . . . . . . . . . . . . . . . . . . . . . . . . . Reprogrammed . | . . . . . . . . . . . . . . . . . . . . . . . . . . . . . . Reused . | . . . . . . . . . . . . . . . . . . . . . . . . . . . . . . Traps Extracted . | . . . . . . . . . . . . . . . . . . . . . . . . . . . . . . Installed . | . . . . . . . . . . . . . . . . . . . . . . . . . . . . . . Triggered 9 | . . . . . . . . . 1 . . . . . . . . . . . 8 . . . . . . . . Machines | -11 -10 -10 -9 -9 -9 -8 -8 -7 -7 -7 -7 -6 -6 -6 -6 -6 -6 -5 -5 -5 -5 -4 -4 -4 -4 -4 -3 -3 -3 ---------- Run | Scr Mat Min Mat Min Exi Min Mat Fac Low Low Dat Pro Fac Ext Cet Arc Hub Fac Upp Upp War Pro Fac Upp Upp Zhi Pro Res Tes Machines Disabled 168 | . 3 . 2 . . 1 5 40 . . . . 18 9 . 2 28 10 2 . 2 2 26 . . 2 1 2 13 Max in Single Turn 13 | . 2 . 1 . . 1 1 6 . . . . 4 4 . 1 13 3 1 . 1 2 8 . . 1 1 1 1 Garrison Access 6 | . . . . . . . 1 . . . . . . . . . 2 . . . . . 1 . . . . 1 1 Network Hub 1 | . . . . . . . . . . . . . . . . . 1 . . . . . . . . . . . . Energy Cycler 3 | . . . . . . . . . . . . . . 3 . . . . . . . . . . . . . . . Machines Sabotaged . | . . . . . . . . . . . . . . . . . . . . . . . . . . . . . . Garrisons Compromised . | . . . . . . . . . . . . . . . . . . . . . . . . . . . . . . Overloaded Fab Kills . | . . . . . . . . . . . . . . . . . . . . . . . . . . . . . . Hacking | -11 -10 -10 -9 -9 -9 -8 -8 -7 -7 -7 -7 -6 -6 -6 -6 -6 -6 -5 -5 -5 -5 -4 -4 -4 -4 -4 -3 -3 -3 --------- Run | Scr Mat Min Mat Min Exi Min Mat Fac Low Low Dat Pro Fac Ext Cet Arc Hub Fac Upp Upp War Pro Fac Upp Upp Zhi Pro Res Tes Machines Accessed 81 | . 5 . 5 . 2 . 7 8 1 . . . 8 7 1 . 7 5 1 1 6 . 4 2 . 4 . 7 . Terminals 59 | . 4 . 5 . . . 5 5 1 . . . 8 7 1 . 5 5 1 1 . . 4 1 . . . 6 . Fabricators 2 | . . . . . . . . 1 . . . . . . . . . . . . . . . . . . . 1 . Repair Stations 1 | . . . . . . . 1 . . . . . . . . . . . . . . . . . . . . . . Recycling Units 2 | . 1 . . . . . . 1 . . . . . . . . . . . . . . . . . . . . . Scanalyzers . | . . . . . . . . . . . . . . . . . . . . . . . . . . . . . . Garrison Access 4 | . . . . . . . 1 1 . . . . . . . . 2 . . . . . . . . . . . . Total Hacks 258 | . 21 . 12 . 24 . 20 24 1 . . . 13 21 2 . 18 16 5 1 12 . 20 2 . 13 . 33 . Successful 153 | . 10 . 9 . 24 . 11 13 1 . . . 4 7 . . 7 6 5 1 12 . 10 2 . 13 . 18 . Failed 105 | . 11 . 3 . . . 9 11 . . . . 9 14 2 . 11 10 . . . . 10 . . . . 15 . Catastrophic 25 | . . . . . . . . 5 . . . . 3 2 . . 3 5 . . . . 3 . . . . 4 . Database Lockouts . | . . . . . . . . . . . . . . . . . . . . . . . . . . . . . . Manual 150 | . 18 . 11 . 1 . 12 17 . . . . 11 9 1 . 16 12 . . 1 . 14 . . . . 27 . Terminals 189 | . 19 . 12 . . . 13 18 1 . . . 13 21 2 . 16 16 5 1 . . 20 1 . . . 31 . Fabricators 4 | . . . . . . . . 2 . . . . . . . . . . . . . . . . . . . 2 . Repair Stations 5 | . . . . . . . 5 . . . . . . . . . . . . . . . . . . . . . . Recycling Units 5 | . 2 . . . . . . 3 . . . . . . . . . . . . . . . . . . . . . Scanalyzers . | . . . . . . . . . . . . . . . . . . . . . . . . . . . . . . Garrison Access 5 | . . . . . . . 2 1 . . . . . . . . 2 . . . . . . . . . . . . Terminal Hacks 96 | . 3 . 3 . 24 . 3 4 1 . . . 1 3 . . 1 3 5 1 12 . 6 2 . 13 . 11 . Record 41 | . . . . . 23 . . . 1 . . . . . . . . . 5 1 5 . . 1 . 5 . . . Part Schematic 6 | . . . . . . . . 1 . . . . . . . . . . . . . . . . . 4 . 1 . Prototype ID Bank 9 | . . . . . . . . . . . . . . . . . . . . . 5 . . . . 4 . . . Open Door 6 | . . . . . . . . . . . . . 1 2 . . . . . . 2 . . 1 . . . . . Branch Access Points 5 | . . . . . . . 1 1 . . . . . . . . . 1 . . . . 1 . . . . 1 . Emergency Access Points 1 | . . . . . . . . . . . . . . . . . . . . . . . . . . . . 1 . Machine Index 1 | . . . . . . . . . . . . . . . . . . . . . . . . . . . . 1 . Alert Level 3 | . . . . . . . . . . . . . . . . . . . . . . . 1 . . . . 2 . Unreport Threat 22 | . 3 . 2 . . . 2 2 . . . . . 1 . . 1 2 . . . . 4 . . . . 5 . Locate Traps 1 | . . . 1 . . . . . . . . . . . . . . . . . . . . . . . . . . EX-Prototype ID Bank 1 | . . . . . 1 . . . . . . . . . . . . . . . . . . . . . . . . Fabricator Hacks 4 | . . . . . . . . 2 . . . . . . . . . . . . . . . . . . . 2 . Load Schematic 2 | . . . . . . . . 1 . . . . . . . . . . . . . . . . . . . 1 . Build 2 | . . . . . . . . 1 . . . . . . . . . . . . . . . . . . . 1 . Repair Station Hacks 3 | . . . . . . . 3 . . . . . . . . . . . . . . . . . . . . . . Scan Component 2 | . . . . . . . 2 . . . . . . . . . . . . . . . . . . . . . . Repair 1 | . . . . . . . 1 . . . . . . . . . . . . . . . . . . . . . . Recycling Unit Hacks 4 | . 2 . . . . . . 2 . . . . . . . . . . . . . . . . . . . . . Process 2 | . 1 . . . . . . 1 . . . . . . . . . . . . . . . . . . . . . Retrieve Matter 2 | . 1 . . . . . . 1 . . . . . . . . . . . . . . . . . . . . . Scanalyzer . | . . . . . . . . . . . . . . . . . . . . . . . . . . . . . . Garrison Access Hacks 3 | . . . . . . . 1 . . . . . . . . . 2 . . . . . . . . . . . . Seal Access 3 | . . . . . . . 1 . . . . . . . . . 2 . . . . . . . . . . . . Unauthorized Hacks 43 | . 5 . 6 . . . 4 5 . . . . 3 4 . . 4 3 . . . . 4 . . . . 5 . Terminals 43 | . 5 . 6 . . . 4 5 . . . . 3 4 . . 4 3 . . . . 4 . . . . 5 . Track 1 | . . . 1 . . . . . . . . . . . . . . . . . . . . . . . . . . Botnet 41 | . 4 . 5 . . . 4 5 . . . . 3 4 . . 4 3 . . . . 4 . . . . 5 . Search 1 | . 1 . . . . . . . . . . . . . . . . . . . . . . . . . . . . Fabricators . | . . . . . . . . . . . . . . . . . . . . . . . . . . . . . . Repair Stations . | . . . . . . . . . . . . . . . . . . . . . . . . . . . . . . Recycling Units . | . . . . . . . . . . . . . . . . . . . . . . . . . . . . . . Scanalyzers . | . . . . . . . . . . . . . . . . . . . . . . . . . . . . . . Garrison Access . | . . . . . . . . . . . . . . . . . . . . . . . . . . . . . . Data Cores Recovered 6 | . . . . . . . 1 . . . . . . . . . . 1 . . . . 2 . . . . 2 . Used 4 | . . . . . . . . . . . . . . . . . . . . . . . 2 . . . . 2 . Hacking Detections 56 | . 3 . 4 . . . 7 6 . . . . 7 7 1 . 5 4 1 . . . 4 . . . . 7 . Full Trace Events 8 | . . . 1 . . . 1 . . . . . 1 1 1 . 1 . 1 . . . . . . . . 1 . Feedback Events . | . . . . . . . . . . . . . . . . . . . . . . . . . . . . . . Feedback Blocked . | . . . . . . . . . . . . . . . . . . . . . . . . . . . . . . Robot Schematics Acquired 3 | . . . . . . . . . . . . . . . . . . . . . . . . . . . . . 3 Robots Built . | . . . . . . . . . . . . . . . . . . . . . . . . . . . . . . Authchips . | . . . . . . . . . . . . . . . . . . . . . . . . . . . . . . Time . | . . . . . . . . . . . . . . . . . . . . . . . . . . . . . . Total Robot Build Rating . | . . . . . . . . . . . . . . . . . . . . . . . . . . . . . . Part Schematics Acquired 7 | . . . . . . . . 1 . . . . . . . . . . . . . . . . . 4 . 1 1 Parts Built 2 | . . . . . . . . 2 . . . . . . . . . . . . . . . . . . . . . Authchips 1 | . . . . . . . . 1 . . . . . . . . . . . . . . . . . . . . . Time 94 | . . . . . . . . 36 . . . . . . . . . . . . . . . . . . . 58 . Total Part Build Rating 6 | . . . . . . . . 6 . . . . . . . . . . . . . . . . . . . . . Parts Repaired 1 | . . . . . . . 1 . . . . . . . . . . . . . . . . . . . . . . Time 44 | . . . . . . . 44 . . . . . . . . . . . . . . . . . . . . . . Parts Recycled . | . . . . . . . . . . . . . . . . . . . . . . . . . . . . . . Recycled Matter 345 | . 30 . . . . . . 315 . . . . . . . . . . . . . . . . . . . . . Retrieved Matter 503 | . 30 . . . . . . 473 . . . . . . . . . . . . . . . . . . . . . Retrieved Components . | . . . . . . . . . . . . . . . . . . . . . . . . . . . . . . Parts Scanalyzed . | . . . . . . . . . . . . . . . . . . . . . . . . . . . . . . Part Schematics Acquired . | . . . . . . . . . . . . . . . . . . . . . . . . . . . . . . Parts Damaged . | . . . . . . . . . . . . . . . . . . . . . . . . . . . . . . Bothacking | -11 -10 -10 -9 -9 -9 -8 -8 -7 -7 -7 -7 -6 -6 -6 -6 -6 -6 -5 -5 -5 -5 -4 -4 -4 -4 -4 -3 -3 -3 ------------ Run | Scr Mat Min Mat Min Exi Min Mat Fac Low Low Dat Pro Fac Ext Cet Arc Hub Fac Upp Upp War Pro Fac Upp Upp Zhi Pro Res Tes Used RIF Installer . | . . . . . . . . . . . . . . . . . . . . . . . . . . . . . . Robots Hacked . | . . . . . . . . . . . . . . . . . . . . . . . . . . . . . . Non-combat . | . . . . . . . . . . . . . . . . . . . . . . . . . . . . . . Combat . | . . . . . . . . . . . . . . . . . . . . . . . . . . . . . . Robot Hacks Applied . | . . . . . . . . . . . . . . . . . . . . . . . . . . . . . . Relay Couplers Released 3 | . . . . . . . . . . . . . . . . . . . . . . . . . . . . 2 1 Machine Destruction 1 | . . . . . . . . . . . . . . . . . . . . . . . . . . . . . 1 Programmers 2 | . . . . . . . . . . . . . . . . . . . . . . . . . . . . 2 . Fabnet Peak Effective % . | . . . . . . . . . . . . . . . . . . . . . . . . . . . . . . Robots Rewired 2 | . . . . . . . . . . . . . . 2 . . . . . . . . . . . . . . . Allies Hacked . | . . . . . . . . . . . . . . . . . . . . . . . . . . . . . . Hacks Repelled . | . . . . . . . . . . . . . . . . . . . . . . . . . . . . . . Allies | -11 -10 -10 -9 -9 -9 -8 -8 -7 -7 -7 -7 -6 -6 -6 -6 -6 -6 -5 -5 -5 -5 -4 -4 -4 -4 -4 -3 -3 -3 -------- Run | Scr Mat Min Mat Min Exi Min Mat Fac Low Low Dat Pro Fac Ext Cet Arc Hub Fac Upp Upp War Pro Fac Upp Upp Zhi Pro Res Tes Total Allies 9 | . . . . . . . . . . . . . . 4 5 . . . . . . . . . . . . . . Largest Group 8 | . . . . . . . . . . . . . . 4 8 8 7 . . . . . . . . . . . . Highest-Rated Group 709 | . . . . . . . . . . . . . . 249 709 709 550 . . . . . . . . . . . . Highest-Rated Ally 159 | . . . . . . . . . . . . . . 159 159 159 96 . . . . . . . . . . . . Total Orders 2 | . . . . . . . . . . . . . . . 2 . . . . . . . . . . . . . . STAY 1 | . . . . . . . . . . . . . . . 1 . . . . . . . . . . . . . . FOLLOW 1 | . . . . . . . . . . . . . . . 1 . . . . . . . . . . . . . . Ally Attacks 116 | . . . . . . . . . . . . . . 26 35 . 55 . . . . . . . . . . . . Total Damage 3634 | . . . . . . . . . . . . . . 982 1000 . 1652 . . . . . . . . . . . . Kills 24 | . . . . . . . . . . . . . . 6 7 . 11 . . . . . . . . . . . . Allies Corrupted 1 | . . . . . . . . . . . . . . . . . 1 . . . . . . . . . . . . Allies Melted 2 | . . . . . . . . . . . . . . 2 . . . . . . . . . . . . . . . Intel | -11 -10 -10 -9 -9 -9 -8 -8 -7 -7 -7 -7 -6 -6 -6 -6 -6 -6 -5 -5 -5 -5 -4 -4 -4 -4 -4 -3 -3 -3 ------- Run | Scr Mat Min Mat Min Exi Min Mat Fac Low Low Dat Pro Fac Ext Cet Arc Hub Fac Upp Upp War Pro Fac Upp Upp Zhi Pro Res Tes Robot Analysis Total 128 | . . . . . . . . . . . 128 . . . . . . . . . . . . . . . . . . Derelict Logs Recovered 13 | . . 1 . 1 . . . . 1 2 . 2 . . . . . . 1 2 . 1 . 2 . . . . . Drone Launches . | . . . . . . . . . . . . . . . . . . . . . . . . . . . . . . Drone Recoveries . | . . . . . . . . . . . . . . . . . . . . . . . . . . . . . . Exploration | -11 -10 -10 -9 -9 -9 -8 -8 -7 -7 -7 -7 -6 -6 -6 -6 -6 -6 -5 -5 -5 -5 -4 -4 -4 -4 -4 -3 -3 -3 ------------- Run | Scr Mat Min Mat Min Exi Min Mat Fac Low Low Dat Pro Fac Ext Cet Arc Hub Fac Upp Upp War Pro Fac Upp Upp Zhi Pro Res Tes Turns Passed 13383 | 57 416 478 714 327 107 252 862 1054 425 277 77 277 425 404 245 52 450 794 752 511 935 310 750 458 220 156 396 591 611 Spaces Moved 14638 | 37 259 598 615 491 235 517 788 1890 876 532 104 500 750 484 223 46 352 609 684 446 916 287 594 388 176 139 326 486 290 Core 6 | 6 . . . . . . . . . . . . . . . . . . . . . . . . . . . . . Treads . | . . . . . . . . . . . . . . . . . . . . . . . . . . . . . . Legs 5939 | 31 247 . . . . . 283 . . . . . . . . . 37 609 684 446 916 287 594 388 176 139 326 486 290 Wheels . | . . . . . . . . . . . . . . . . . . . . . . . . . . . . . . Hover 8693 | . 12 598 615 491 235 517 505 1890 876 532 104 500 750 484 223 46 315 . . . . . . . . . . . . Flight . | . . . . . . . . . . . . . . . . . . . . . . . . . . . . . . Fastest Speed 34 | 50 52 52 48 44 44 44 44 42 44 44 44 44 34 34 34 34 34 100 100 100 96 96 97 102 102 102 102 102 102 Average Speed 67 | 108 117 52 50 44 44 44 80 44 44 44 44 44 38 34 34 34 40 100 100 100 99 96 99 102 102 102 102 102 102 Slowest Speed 260 | 120 120 52 52 48 44 44 260 108 44 44 44 44 95 34 34 34 100 100 100 100 100 97 102 102 102 102 102 102 102 Overloaded Moves . | . . . . . . . . . . . . . . . . . . . . . . . . . . . . . . Propulsion Burnouts . | . . . . . . . . . . . . . . . . . . . . . . . . . . . . . . Robots Hopped . | . . . . . . . . . . . . . . . . . . . . . . . . . . . . . . Cave-ins Triggered . | . . . . . . . . . . . . . . . . . . . . . . . . . . . . . . Exploration Rate (%) 60 | 4 74 92 66 53 60 88 71 56 95 92 74 77 22 77 58 72 53 25 90 67 88 55 27 65 40 60 68 15 45 Regions Visited 29 Branch Regions 21 Pre-discovered Areas 33 | . . 1 . . 1 . . . . . 25 . . . . . . . 2 . . 1 . . . 3 . . . Known Exits Taken 20 | . . . 1 . . . 1 1 1 1 1 1 1 . . . 1 1 1 1 1 1 1 1 1 1 1 1 . Unknown Exits Taken 9 | 1 1 1 . 1 1 1 . . . . . . . 1 1 1 . . . . . . . . . . . . . Scrap Searched 31 | . . 1 . 2 . 1 . . 4 4 . 3 . . . . . . 5 2 . 1 . 4 2 . 2 . . Spaces Dug 168 | . . . . . . . . 33 . . . . 56 1 . . 16 15 1 . . . 24 . . . . 18 4 Terrain Destroyed 2153 | . 155 . 58 . . 24 94 327 34 19 14 33 255 138 14 4 303 55 24 34 . 18 209 56 25 . 18 65 177 Melee . | . . . . . . . . . . . . . . . . . . . . . . . . . . . . . . Projectile 1051 | . . . . . . 24 94 62 34 19 14 33 62 107 14 4 126 50 24 34 . 18 70 56 25 . 18 65 98 AOE 1101 | . 155 . 58 . . . . 265 . . . . 193 31 . . 177 5 . . . . 139 . . . . . 78 Terrain Rammed . | . . . . . . . . . . . . . . . . . . . . . . . . . . . . . . Walls Destroyed . | . . . . . . . . . . . . . . . . . . . . . . . . . . . . . . Machines Disabled . | . . . . . . . . . . . . . . . . . . . . . . . . . . . . . . Actions | -11 -10 -10 -9 -9 -9 -8 -8 -7 -7 -7 -7 -6 -6 -6 -6 -6 -6 -5 -5 -5 -5 -4 -4 -4 -4 -4 -3 -3 -3 --------- Run | Scr Mat Min Mat Min Exi Min Mat Fac Low Low Dat Pro Fac Ext Cet Arc Hub Fac Upp Upp War Pro Fac Upp Upp Zhi Pro Res Tes Total 17072 | 45 313 676 797 585 239 540 1019 2102 907 560 125 535 846 655 371 77 548 748 733 491 939 313 702 432 202 150 367 557 498 Wait 455 | . . 6 9 63 . . 49 44 . . . . 13 32 112 23 3 20 . 13 10 . 33 11 . . 5 9 . Move 14609 | 36 258 597 614 490 234 516 787 1889 875 531 103 499 749 483 222 45 351 608 683 445 915 286 593 387 175 138 325 485 290 Hop . | . . . . . . . . . . . . . . . . . . . . . . . . . . . . . . Pick Up 25 | . 4 1 . 1 . . 4 3 . . . 1 1 2 . . 1 . . 2 . 2 . 1 1 1 . . . Fast Attach 89 | 6 4 1 6 3 1 . 20 13 2 . . . 2 . 3 . 9 3 . . 5 . 1 . . 3 . 2 5 Attach 5 | . . . . 1 . . . 1 . . . 1 1 . . . 1 . . . . . . . . . . . . Detach 2 | . . . . . . . . 1 . . . . . . . . . . . . 1 . . . . . . . . Swap 33 | . 4 . 2 2 . . 3 7 . . . . 7 1 . . . . . . . . 2 1 . . . . 4 Drop 94 | . 4 1 3 3 4 . 23 15 1 . . . 10 2 3 . 7 2 . . 4 2 . 2 1 2 . 2 3 Fire 1145 | 3 32 44 113 7 . 18 95 91 16 15 10 23 48 80 25 5 121 52 21 22 3 13 55 22 17 3 24 44 123 Melee 1 | . . . . . . . . . . . . . . . . . . . . . 1 . . . . . . . . Ram 1 | . . . . . . . . . . . 1 . . . . . . . . . . . . . . . . . . Kick 1 | . 1 . . . . . . . . . . . . . . . . . . . . . . . . . . . . Crush . | . . . . . . . . . . . . . . . . . . . . . . . . . . . . . . Escape Stasis 52 | . . . . . . . . 13 . . . . . 39 . . . . . . . . . . . . . . . Rewire 3 | . . . . . . . . . . . . . . 3 . . . . . . . . . . . . . . . Trap . | . . . . . . . . . . . . . . . . . . . . . . . . . . . . . . Miscellaneous 557 | . 6 26 50 15 . 6 38 25 13 14 11 11 15 13 6 4 55 63 29 9 . 10 18 8 8 3 13 15 73 Route ------- -11/Scrapyard -10/Materials (discovered 3 exits: *Mat / [*Min x2]) -10/Mines (discovered 2 exits: *Mat x2) -9/Materials (discovered 6 exits: *Mat x2 / *Min x2 / [*Sto x2]) -9/Mines -9/Exiles -8/Mines -8/Materials (discovered 2 exits: *Fac x2) -7/Factory (discovered 3 exits: *Fac / *Low x2) -7/Lower Caves -7/Lower Caves (discovered 2 exits: *Fac / *Dat) -7/Data Miner -6/Proximity Caves -6/Factory (discovered 5 exits: *Fac x2 / *Low / *Ext x2) -6/Extension (discovered 3 exits: *Fac x2 / *Cet) -6/Cetus (discovered 2 exits: *Fac / [*Arc]) -6/Archives (discovered 2 exits: *Fac / *Hub) -6/Hub_04(d) (discovered 3 exits: *Fac x3) -5/Factory (discovered 2 exits: *Upp x2) -5/Upper Caves -5/Upper Caves -5/Warlord -4/Proximity Caves -4/Factory (discovered 3 exits: *Upp x2 / Arm) -4/Upper Caves -4/Upper Caves -4/Zhirov -3/Proximity Caves -3/Research (discovered 3 exits: Res / *Tes x2) -3/Testing History --------- Turn | Location | Event 2 | -11/Scrapyard | Upgraded with Propulsion slot (x1) 2 | -11/Scrapyard | Upgraded with Utility slot (x1) 2 | -11/Scrapyard | Upgraded with Weapon slot (x1) 4 | -11/Scrapyard | Discovered new exit (range 16) 58 | -11/Scrapyard | Entered Materials 180 | -10/Materials | Discovered new exit (range 12) 301 | -10/Materials | Build established: Mutant 346 | -10/Materials | Reached level 2 360 | -10/Materials | Discovered new exit (range 11) 444 | -10/Materials | Discovered new exit (range 8) 457 | -10/Materials | Upgraded with Propulsion slot (x1) 474 | -10/Materials | Entered Mines 482 | -10/Mines | Discovered new exit (range 6) 613 | -10/Mines | Learned location of Zion (-6) 695 | -10/Mines | Received a Rocket Launcher from a helpful Derelict 750 | -10/Mines | Reached level 3 798 | -10/Mines | Discovered new exit (range 10) 952 | -10/Mines | Entered Materials 954 | -9/Materials | Reached level 4 1037 | -9/Materials | Discovered new exit (range 4) 1098 | -9/Materials | Discovered new exit (range 6) 1131 | -9/Materials | Reached level 5 1217 | -9/Materials | Core integrity fell below 50% 1254 | -9/Materials | Destroyed 7 combat bots 1265 | -9/Materials | Discovered new exit (range 16) 1386 | -9/Materials | Discovered new exit (range 14) 1386 | -9/Materials | Reached level 6 1431 | -9/Materials | Core integrity fell below 20% 1447 | -9/Materials | Upgraded with Propulsion slot (x1) 1447 | -9/Materials | Upgraded with Utility slot (x3) 1447 | -9/Materials | Upgraded with Weapon slot (x2) 1478 | -9/Materials | Discovered new exit (range 7) 1532 | -9/Materials | Identified exit to Mines 1544 | -9/Materials | Discovered exit to Mines (range 16) 1666 | -9/Materials | Entered Mines 1668 | -9/Mines | Reached level 7 1690 | -9/Mines | Joined a pair of Derelicts in attacking an 0b10 outpost 1700 | -9/Mines | Upgraded with Propulsion slot (x1) 1752 | -9/Mines | Deemed a non-threat by the Exiles lab entrance 1752 | -9/Mines | Discovered new exit (range 5) 1809 | -9/Mines | Build established: Scavenger-Gunner 1812 | -9/Mines | Assembled infested the area 1814 | -9/Mines | Found a damaged Exp. Sensor Array with a note attached 1816 | -9/Mines | Found Prototype Device 1882 | -9/Mines | Met 8R-AWN 1993 | -9/Mines | Entered Exiles 2004 | -9/Exiles | Welcomed by 8R-AWN 2012 | -9/Exiles | Met EX-HEX 2024 | -9/Exiles | Met EX-BIN 2030 | -9/Exiles | Aligned with FarCom system 2030 | -9/Exiles | Given EX-Vault access code 2041 | -9/Exiles | Opened EX-Vault 2046 | -9/Exiles | Found XL Autogun Array 2057 | -9/Exiles | Warned to stay clear of 0b10 Research branches 2095 | -9/Exiles | Discovered new exit (range 14) 2100 | -9/Exiles | Left Exiles lab with XL Autogun Array 2100 | -9/Exiles | Entered Mines 2114 | -8/Mines | Reached level 8 2149 | -8/Mines | Upgraded with Utility slot (x1) 2267 | -8/Mines | Discovered new exit (range 6) 2329 | -8/Mines | Destroyed 7 combat bots 2333 | -8/Mines | Build established: Gunner 2352 | -8/Mines | Entered Materials 2353 | -8/Materials | Identified exit to Factory 2354 | -8/Materials | Reached level 9 2370 | -8/Materials | Reached level 10 2447 | -8/Materials | Destroyed 9 combat bots 2447 | -8/Materials | Reached level 11 2454 | -8/Materials | Upgraded with Utility slot (x1) 2454 | -8/Materials | Upgraded with Weapon slot (x1) 2510 | -8/Materials | Repaired Broken Imp. Hover Unit 2810 | -8/Materials | Build established: Scavenger-Gunner 2866 | -8/Materials | Reached level 12 3200 | -8/Materials | Discovered exit to Factory (range 11) 3214 | -8/Materials | Entered Factory 3216 | -7/Factory | Reached level 13 3309 | -7/Factory | Garrison activated, responded to threat 3327 | -7/Factory | Reached level 14 3366 | -7/Factory | Destroyed 9 combat bots 3402 | -7/Factory | Identified exit to Lower Caves 3581 | -7/Factory | Fabricated Lrn. Tractor Beam (x2) 3719 | -7/Factory | Discovered new exit (range 9) 3728 | -7/Factory | Identified exit to Factory 3819 | -7/Factory | Build established: Gunner 3879 | -7/Factory | Reached level 15 4005 | -7/Factory | Upgraded with Power slot (x1) 4123 | -7/Factory | Reached level 16 4268 | -7/Factory | Entered Lower Caves 4298 | -7/Lower Caves | Learned location of 1 exit from Factory 4374 | -7/Lower Caves | Discovered new exit (range 14) 4428 | -7/Lower Caves | Identified exit to Lower Caves 4693 | -7/Lower Caves | Entered another Lower Caves area 4743 | -7/Lower Caves | Discovered exit to Factory (range 13) 4819 | -7/Lower Caves | Learned Factory trap positions 4839 | -7/Lower Caves | Spotted B-75 Beast 4854 | -7/Lower Caves | Destroyed B-75 Beast 4889 | -7/Lower Caves | Reached level 17 4949 | -7/Lower Caves | Discovered new exit (range 6) 4952 | -7/Lower Caves | Identified exit to Data Miner 4953 | -7/Lower Caves | Learned Factory non-interactive machine intel 4970 | -7/Lower Caves | Entered Data Miner 4970 | -7/Data Miner | Discovered new exit (range 6) 4978 | -7/Data Miner | Met Data Miner 4985 | -7/Data Miner | Interfaced with the Data Conduit 5046 | -7/Data Miner | Identified exit to Proximity Caves 5047 | -7/Data Miner | Entered Proximity Caves 5117 | -6/Proximity Caves | Reached level 18 5193 | -6/Proximity Caves | Upgraded with Utility slot (x1) 5201 | -6/Proximity Caves | Destroyed 11 combat bots 5231 | -6/Proximity Caves | Spotted B-75 Beast 5241 | -6/Proximity Caves | Destroyed B-75 Beast 5263 | -6/Proximity Caves | Learned location of 1 exit from Factory 5324 | -6/Proximity Caves | Entered Factory 5325 | -6/Factory | Identified exit to Extension 5325 | -6/Factory | Identified exit to Factory 5326 | -6/Factory | Loaded intel: 112 trap records 5327 | -6/Factory | Loaded intel: 314 machine locations 5328 | -6/Factory | Loaded intel: 260 non-interactive machine locations 5370 | -6/Factory | Reached level 19 5438 | -6/Factory | Discovered new exit (range 9) 5441 | -6/Factory | Identified exit to Lower Caves 5577 | -6/Factory | Discovered exit to Factory (range 12) 5578 | -6/Factory | Destroyed 11 combat bots 5674 | -6/Factory | First assault squad dispatched 5733 | -6/Factory | Reached level 20 5747 | -6/Factory | Discovered exit to Extension (range 6) 5749 | -6/Factory | Entered Extension 5750 | -6/Extension | Loaded intel: 31 machine locations 5782 | -6/Extension | Rescued a captive Derelict 5845 | -6/Extension | Energy Cycler disabled 5846 | -6/Extension | Rescued a captive Derelict 5848 | -6/Extension | Rescued a captive Derelict 5849 | -6/Extension | Disrupted transfer network 5856 | -6/Extension | Rescued A7 5865 | -6/Extension | Rescued a captive Derelict 5929 | -6/Extension | Spotted B-75 Beast 5959 | -6/Extension | Allies destroyed B-75 Beast 5965 | -6/Extension | Spotted B-75 Beast 5966 | -6/Extension | Discovered exit to Factory (range 18) 5967 | -6/Extension | Destroyed 7 combat bots 5969 | -6/Extension | Destroyed B-75 Beast 6026 | -6/Extension | Destroyed 10 combat bots 6032 | -6/Extension | Reached level 21 6099 | -6/Extension | First assault squad dispatched 6131 | -6/Extension | Discovered exit to Factory (range 12) 6131 | -6/Extension | Discovered new exit (range 8) 6144 | -6/Extension | Disrupted transfer network 6153 | -6/Extension | Entered Cetus 6153 | -6/Cetus | Accompanied by 4 allies (A7) 6154 | -6/Cetus | Loaded intel: 24 machine locations 6158 | -6/Cetus | Acquired a Cetus Manufacturing Module code from A7 6160 | -6/Cetus | Spotted Cetus Guard 6160 | -6/Cetus | Spotted Cetus Guard 6160 | -6/Cetus | Spotted Cetus Guard 6160 | -6/Cetus | Spotted Cetus Guard 6162 | -6/Cetus | Destroyed Cetus Guard 6166 | -6/Cetus | Destroyed Cetus Guard 6166 | -6/Cetus | Allies destroyed Cetus Guard 6169 | -6/Cetus | Allies destroyed Cetus Guard 6187 | -6/Cetus | Destroyed 25 combat bots 6200 | -6/Cetus | Started Cetus Manufacturing Module 6225 | -6/Cetus | Manufactured an Enhanced Grunt 6250 | -6/Cetus | Manufactured an Enhanced Grunt 6275 | -6/Cetus | Manufactured an Enhanced Grunt 6300 | -6/Cetus | Manufactured an Enhanced Grunt 6325 | -6/Cetus | Manufactured an Enhanced Grunt 6329 | -6/Cetus | Discovered new exit (range 18) 6353 | -6/Cetus | Spotted Cetus Guard 6354 | -6/Cetus | Spotted Cetus Guard 6356 | -6/Cetus | Spotted Cetus Guard 6360 | -6/Cetus | Destroyed Cetus Guard 6360 | -6/Cetus | Destroyed Cetus Guard 6364 | -6/Cetus | Destroyed Cetus Guard 6365 | -6/Cetus | Spotted Cetus Guard 6367 | -6/Cetus | Allies destroyed Cetus Guard 6368 | -6/Cetus | Discovered exit to Factory (range 19) 6372 | -6/Cetus | Met Revision 17 6398 | -6/Cetus | Entered Archives 6398 | -6/Archives | Accompanied by 8 allies (A7) 6399 | -6/Archives | Loaded intel: 8 machine locations 6401 | -6/Archives | Reached level 22 6415 | -6/Archives | Discovered exit to Factory (range 15) 6423 | -6/Archives | Discovered new exit (range 13) 6450 | -6/Archives | Entered Hub_04(d) 6450 | -6/Hub_04(d) | Accompanied by 7 allies 6451 | -6/Hub_04(d) | Loaded intel: 95 machine locations 6463 | -6/Hub_04(d) | Discovered exit to Factory (range 9) 6464 | -6/Hub_04(d) | Garrison activated, responded to threat 6518 | -6/Hub_04(d) | Destroyed 7 combat bots 6546 | -6/Hub_04(d) | Discovered exit to Factory (range 16) 6549 | -6/Hub_04(d) | Build established: Commander-Gunner 6593 | -6/Hub_04(d) | Spotted B-75 Beast 6594 | -6/Hub_04(d) | Destroyed 9 combat bots 6601 | -6/Hub_04(d) | Destroyed B-75 Beast 6637 | -6/Hub_04(d) | Discovered exit to Factory (range 10) 6644 | -6/Hub_04(d) | High security lockdown imminent 6645 | -6/Hub_04(d) | Garrison activated, responded to threat 6685 | -6/Hub_04(d) | Destroyed 14 combat bots 6708 | -6/Hub_04(d) | Network Hub disabled 6708 | -6/Hub_04(d) | Reached level 23 6714 | -6/Hub_04(d) | Spotted Lightning 6714 | -6/Hub_04(d) | Spotted Lightning 6714 | -6/Hub_04(d) | Spotted Lightning 6721 | -6/Hub_04(d) | Destroyed Lightning 6724 | -6/Hub_04(d) | High security lockdown engaged 6732 | -6/Hub_04(d) | Destroyed Lightning 6736 | -6/Hub_04(d) | Destroyed Lightning 6762 | -6/Hub_04(d) | Destroyed 7 combat bots 6797 | -6/Hub_04(d) | Core integrity fell below 50% 6806 | -6/Hub_04(d) | Core integrity fell below 20% 6809 | -6/Hub_04(d) | Upgraded with Utility slot (x1) 6816 | -6/Hub_04(d) | Found Exp. EM Disruption Field 6834 | -6/Hub_04(d) | Destroyed 19 combat bots 6900 | -6/Hub_04(d) | Entered Factory 6901 | -5/Factory | Loaded intel: 239 machine locations 6901 | -5/Factory | Core integrity fell below 50% 6918 | -5/Factory | Destroyed 9 combat bots 7070 | -5/Factory | Build established: Scavenger-Gunner 7233 | -5/Factory | Garrison activated, responded to threat 7425 | -5/Factory | High security lockdown imminent 7465 | -5/Factory | Identified exit to Upper Caves 7505 | -5/Factory | High security lockdown engaged 7569 | -5/Factory | Reached level 24 7624 | -5/Factory | Destroyed 14 combat bots 7694 | -5/Factory | Entered Upper Caves 7943 | -5/Upper Caves | Spotted B-75 Beast 7957 | -5/Upper Caves | Destroyed B-75 Beast 8053 | -5/Upper Caves | Upgraded with Weapon slot (x1) 8166 | -5/Upper Caves | Encountered a Warlord checkpoint 8231 | -5/Upper Caves | Discovered new exit (range 7) 8246 | -5/Upper Caves | Identified exit to Upper Caves 8349 | -5/Upper Caves | Attracted the attention of an 0b10 base 8353 | -5/Upper Caves | Build established: Scavenger-Executioner 8376 | -5/Upper Caves | Destroyed 7 combat bots 8382 | -5/Upper Caves | Learned 4 Factory zone layouts 8406 | -5/Upper Caves | Learned Extension emergency access door positions 8406 | -5/Upper Caves | Learned Research security intel 8446 | -5/Upper Caves | Entered another Upper Caves area 8503 | -5/Upper Caves | Learned 4 Factory zone layouts 8696 | -5/Upper Caves | Learned Factory interactive machine intel 8772 | -5/Upper Caves | Attracted the attention of an 0b10 checkpoint 8779 | -5/Upper Caves | Discovered new exit (range 15) 8806 | -5/Upper Caves | Identified exit to Warlord 8957 | -5/Upper Caves | Entered Warlord 9085 | -5/Warlord | Received a Watcher feed algorithm from an ecstatic Tinkerer 9429 | -5/Warlord | Visited the Vortex Lab 9431 | -5/Warlord | Warlord's base attacked by MAIN.C 9469 | -5/Warlord | Learned Armory fabricator intel 9469 | -5/Warlord | Learned Research garrison access intel 9470 | -5/Warlord | Learned 4 Command zone layouts 9472 | -5/Warlord | Learned Testing trap positions 9509 | -5/Warlord | Met Warlord 9606 | -5/Warlord | Found Prototype Piercing Weapon 9606 | -5/Warlord | Identified Vortex Lance 9705 | -5/Warlord | Found Vortex Chain Reactor 9710 | -5/Warlord | Found Prototype Hackware 9710 | -5/Warlord | Identified System Mapper 9781 | -5/Warlord | Warlord forces counterattacked 9866 | -5/Warlord | Opened side exit 9884 | -5/Warlord | Discovered new exit (range 10) 9891 | -5/Warlord | Identified exit to Proximity Caves 9892 | -5/Warlord | Entered Proximity Caves 9894 | -4/Proximity Caves | Reached level 25 10037 | -4/Proximity Caves | Spotted B-86 Titan 10041 | -4/Proximity Caves | Destroyed B-86 Titan 10101 | -4/Proximity Caves | Build established: Hacker-Executioner 10194 | -4/Proximity Caves | Discovered new exit (range 9) 10201 | -4/Proximity Caves | Identified exit to Factory 10202 | -4/Proximity Caves | Entered Factory 10204 | -4/Factory | Loaded intel: 293 machine locations 10205 | -4/Factory | Loaded intel: 51 interactive machine locations 10257 | -4/Factory | Garrison activated, responded to threat 10337 | -4/Factory | Reached level 26 10635 | -4/Factory | Destroyed 7 combat bots 10831 | -4/Factory | Identified exit to Upper Caves 10831 | -4/Factory | Identified exit to Armory 10952 | -4/Factory | First assault squad dispatched 10952 | -4/Factory | Entered Upper Caves 10974 | -4/Upper Caves | Learned Research security intel 11390 | -4/Upper Caves | Discovered new exit (range 9) 11395 | -4/Upper Caves | Learned 8 Research zone layouts 11398 | -4/Upper Caves | Reached level 27 11406 | -4/Upper Caves | Identified exit to Upper Caves 11410 | -4/Upper Caves | Entered another Upper Caves area 11468 | -4/Upper Caves | Attracted the attention of an 0b10 outpost 11522 | -4/Upper Caves | Destroyed 9 combat bots 11582 | -4/Upper Caves | Upgraded with Utility slot (x1) 11611 | -4/Upper Caves | Discovered new exit (range 9) 11626 | -4/Upper Caves | Identified exit to Zhirov 11630 | -4/Upper Caves | Entered Zhirov 11630 | -4/Zhirov | Discovered new exit (range 3) 11649 | -4/Zhirov | Met Zhirov 11677 | -4/Zhirov | Zhirov requested help retrieving the SGEMP Prototype 11693 | -4/Zhirov | Found Alien Artifact 11708 | -4/Zhirov | Found Alien Artifact 11708 | -4/Zhirov | Identified Integrated Reactor 11708 | -4/Zhirov | Installed Integrated Reactor, increased core energy generation (+10) 11785 | -4/Zhirov | Identified exit to Proximity Caves 11786 | -4/Zhirov | Entered Proximity Caves 11838 | -3/Proximity Caves | Spotted B-86 Titan 11846 | -3/Proximity Caves | Destroyed B-86 Titan 11917 | -3/Proximity Caves | Attracted the attention of an 0b10 outpost 11926 | -3/Proximity Caves | Reached level 28 11968 | -3/Proximity Caves | Destroyed 9 combat bots 12174 | -3/Proximity Caves | Discovered new exit (range 8) 12181 | -3/Proximity Caves | Identified exit to Research 12182 | -3/Proximity Caves | Entered Research 12183 | -3/Research | Identified exit to Research 12185 | -3/Research | Loaded intel: 107 machine locations 12186 | -3/Research | Loaded intel: 4 garrison access locations 12382 | -3/Research | Revision forces began assault on 0b10 12404 | -3/Research | Identified exit to Testing 12435 | -3/Research | Reached level 29 12538 | -3/Research | Intercept squad dispatched 12563 | -3/Research | Spotted Tracker 12565 | -3/Research | Destroyed Tracker 12599 | -3/Research | Spotted Combat Programmer 12601 | -3/Research | Destroyed Combat Programmer 12632 | -3/Research | Spotted Tracker 12633 | -3/Research | Destroyed Tracker 12676 | -3/Research | Spotted Combat Programmer 12680 | -3/Research | Destroyed Combat Programmer 12773 | -3/Research | Entered Testing 12774 | -3/Testing | Maximum security lockdown engaged 12774 | -3/Testing | Loaded intel: 19 trap records 12775 | -3/Testing | Loaded intel: 71 machine locations 12821 | -3/Testing | Found Prototype Device 12821 | -3/Testing | Identified Exp. Hardlight Generator 12832 | -3/Testing | Spotted Alpha 7 12838 | -3/Testing | Destroyed Alpha 7 12841 | -3/Testing | Spotted HZ-073(L) 12842 | -3/Testing | Spotted VN-HQL(L) 12842 | -3/Testing | Spotted SX-IXN(L) 12851 | -3/Testing | Upgraded with Weapon slot (x1) 12856 | -3/Testing | Found Prototype Ballistic Gun 12856 | -3/Testing | Identified Multirail 12899 | -3/Testing | Garrison activated, responded to threat 12911 | -3/Testing | Reached level 30 12985 | -3/Testing | Destroyed 34 combat bots 13023 | -3/Testing | Spotted Investigator 13025 | -3/Testing | Destroyed Investigator 13058 | -3/Testing | Destroyed 26 combat bots 13109 | -3/Testing | Spotted Striker 13111 | -3/Testing | Spotted Striker 13185 | -3/Testing | Reached level 31 13247 | -3/Testing | Destroyed 37 combat bots 13342 | -3/Testing | Spotted Executioner 13362 | -3/Testing | Spotted Striker 13365 | -3/Testing | Spotted Executioner 13367 | -3/Testing | Destroyed Executioner 13372 | -3/Testing | Destroyed Striker 13375 | -3/Testing | Destroyed Executioner 13376 | -3/Testing | Core integrity fell below 50% 13383 | -3/Testing | Core integrity fell below 20% 13384 | -3/Testing | Self-destructed Last Messages --------------- 13377_ P-80 Master destroyed. 13377_ Switching to secondary target: P-80 Master. 13377_ P-80 Master destroyed. 13377_ Slug penetrates Wall. 13377_ Multirail blown off. 13377_ E-15 Imp destroyed. 13378_ Wall collapses. 13379_ Slug penetrates Wall. 13379_ C-30 ARC bursts open, deploying its payload. 13379_ G-73 Enforcer unfolds itself. 13379_ G-67 Veteran unfolds itself. 13379_ M-36 Artificer unfolds itself. 13380_ Slug penetrates G-67 Veteran. 13380_ G-67 Veteran destroyed. 13380_ Penetrated by Slug. 13380_ Slug penetrates H-77 Assassin. 13382_ Slug penetrates G-67 Veteran. 13382_ G-67 Veteran destroyed. 13383_ Penetrated by Slug. 13383_ Slug penetrates Wall. Map ----- +----------------------------------------------------+ | ?????????????????????????????????????????????????? | | #####????????????????????????????????????????????? | | #????????????????????????????????????????????? | | ?????????????????????????????????????????????? | | ???????????????????????????????????????????????? | | ?????????????????????????????????????????????????? | | ?????????????????????????????????????????????????? | | ??????????????????????""" """????????????????????? | | ############??????????""" """????????????????????? | | # #??????????""" """????????????????????? | | " """ !#????????????? ???????????????????????? | | """ #??????????""" """????????????????????? | | "" !##########?""" """????????????????????? | | # # """"" !#?""" """????????????????????? | | / !!! # ""R"" #? ???????????????????^?? | | #[%" # " " # """ """??????????????????^?? | | ===![ # """ """??????????????????^?? | | %%=! !# """ """ ?????????????????^?? | | "######=!%= ???????????????????? | | "#?????#!=%* =* w ????????????????????? | | "#?????#*%=! =! # ??????????????????????? | | ???#####"**!![ ! !! #?##[#####?????????????????"" | | ####"#"!% ==#% !! ####[!%[ ;#?????????????????"" | | * =/!%[* =!==% ! !!|p!![%#??????????????????"" | | !*!=*=[!= %%%%%% %%" %![%%!#???????????????????? | | ## =%= !=![!=%= # ##+###@[%!#??????????????????"" | | # """ =![*![**! %%%####??????????????????"" | | # """[ ![#!"%!= !m=*=/#????????????????????"" | | + """!/!!""## %=!h!%|#?????????????????????? | | # """=== ""## [!hgg!#?????????????????????? | | # """ %=""## [=*![%#?????????????????????? | | ?# """! [ T## !%g*g!#?????????????????????? | | ?# "## !!!!gg#?????????????????????? | | ?# """ ""## = =[#m!#?????????????????????? | | ?# """ [[ "##+#;#######g;#?????????????????????? | | ?# """ [! "##? ;#??????#%##?????????????????????? | | ?# """ [! "#?# #???????!/#?????????????"""""""??? | | ?# """ [ "#?; ????????[m#?????????????"""""""??? | | ?# """ !%=## #????????g %"?????????????"""""""??? | | ? """ [ # ?????g???? %m#??????????????????????? | | ? #??????g???? %#??????????????????????? | | # !%??????g??? i! #??????????????????????? | | ? ##""[%=??????????g %%#??????????????????????? | | #####?###[!=?????????# #??????????????????????? | | #???????# [?????????# #??"""?"""?????????????? | | ####?????###?????????# %%#??"""?"""?????????????? | | #?????????????????# %???"""?"""?????????????? | | #?????????????????# ???"""?"""?????????""??? | | #?????????????????# ???"""?"""?????????""??? | | #????"""""????????# ???"""?"""?????????"T??? | +----------------------------------------------------+ Best States ------------- Heat Dissipation 127 Energy Generation 65 Energy Capacity 700 Matter Stores 600 Matter Capacity 600 Sight Range 19 Terrain Scan Density 10 Armor Coverage 225 Resistance: KI 20 Resistance: TH 20 Resistance: EX 20 Evasion (%) 58 Targeting Accuracy 6 Core Analysis 6 Armor Integrity Analysis 30 Recoil Reduction 4 Kinecelleration 40 Offensive Hacking 35 Defensive Hacking 19 Authchip Count 2 Item Schematics ----------------- Lrn. Tractor Beam | -7/Factory | Hacked Assault Drone Bay | -4/Zhirov | Free Exp. Heat Sink | -4/Zhirov | Free Exp. Optical Array | -4/Zhirov | Free Imp. Arc Thrower | -4/Zhirov | Free Imp. Armor Integrity Analyzer | -3/Research | Hacked Thunder Hammer | -3/Testing | Archive Robot Schematics ------------------ T-07 Excavator | -3/Testing | Archive A-27 Freighter | -3/Testing | Archive B-74 Champion | -3/Testing | Archive Fabricated ------------ Lrn. Tractor Beam | x2 | -7/Factory | Authchip Alien Tech Used ----------------- Integrated Reactor Achievements -------------- None Challenges ------------ None RPGLIKE | -11 -10 -10 -9 -9 -9 -8 -8 -7 -7 -7 -7 -6 -6 -6 -6 -6 -6 -5 -5 -5 -5 -4 -4 -4 -4 -4 -3 -3 -3 --------- Run | Scr Mat Min Mat Min Exi Min Mat Fac Low Low Dat Pro Fac Ext Cet Arc Hub Fac Upp Upp War Pro Fac Upp Upp Zhi Pro Res Tes Levels Raised 30 | . 1 1 3 1 . 1 4 4 . 1 . 1 2 1 . 1 1 1 . . . 1 1 1 . . 1 1 2 XP Earned 48606 | 3000 1797 1700 5302 750 350 1725 5494 6011 468 475 511 1682 2366 1979 804 194 1698 1567 279 240 185 771 2199 516 281 105 1363 1637 3157 XP Spent 44700 | 3000 800 . 6300 1400 . 1700 4800 5000 2100 . . 2900 . . . . 7580 . 1700 . . . . . 4300 . . . 3120 Upgrades 75 | 6 1 . 6 1 . 1 12 9 5 . . 2 . . . . 21 . 1 . . . . . 5 . . . 5 Power Slot 1 | . . . . . . . . 1 . . . . . . . . . . . . . . . . . . . . . Propulsion Slot 4 | 1 1 . 1 1 . . . . . . . . . . . . . . . . . . . . . . . . . Utility Slot 9 | 1 . . 3 . . 1 1 . . . . 1 . . . . 1 . . . . . . . 1 . . . . Weapon Slot 6 | 1 . . 2 . . . 1 . . . . . . . . . . . 1 . . . . . . . . . 1 Core Integrity 8 | . . . . . . . . . . . . . . . . . 8 . . . . . . . . . . . . Heat Dissipation 14 | . . . . . . . 10 . . . . . . . . . . . . . . . . . . . . . 4 Mass Support 2 | . . . . . . . . . 1 . . 1 . . . . . . . . . . . . . . . . . Inventory Capacity 3 | 3 . . . . . . . . . . . . . . . . . . . . . . . . . . . . . Sight Range 3 | . . . . . . . . . 3 . . . . . . . . . . . . . . . . . . . . Ranged Accuracy 5 | . . . . . . . . 5 . . . . . . . . . . . . . . . . . . . . . Hack Attack % 3 | . . . . . . . . . . . . . . . . . . . . . . . . . 3 . . . . Hack Defense % 1 | . . . . . . . . . . . . . . . . . . . . . . . . . 1 . . . . KI Resistance % 4 | . . . . . . . . . . . . . . . . . 4 . . . . . . . . . . . . TH Resistance % 4 | . . . . . . . . . . . . . . . . . 4 . . . . . . . . . . . . EX Resistance % 4 | . . . . . . . . . . . . . . . . . 4 . . . . . . . . . . . . KI Damage % 4 | . . . . . . . . 3 1 . . . . . . . . . . . . . . . . . . . . Protomatter Created 10963 | . 74 169 364 76 . 33 520 479 96 102 82 160 449 856 112 140 902 737 224 257 51 135 621 264 306 . 476 283 2995 Integrity Restored 11244 | . 106 502 1067 315 . 92 630 473 253 299 244 233 290 184 128 77 1175 1356 655 162 . 209 344 116 153 59 242 300 1580 Core 8068 | . 94 439 976 205 . 71 335 374 154 248 205 90 194 126 94 48 1093 852 346 124 . 176 237 106 87 46 172 229 947 Parts 3176 | . 12 63 91 110 . 21 295 99 99 51 39 143 96 58 34 29 82 504 309 38 . 33 107 10 66 13 70 71 633 Protomatter Decayed 8253 | . . . 59 144 . . 218 358 48 . . 41 246 730 118 . 654 305 1 101 705 50 405 190 183 36 389 1458 1814 Game ------ Seed AblativeAssembledKit Manual? 0 Play Time 02:31:17 Cumulative 118.4 hours Start 2022.05.01 @ 16:28:30 End 2022.05.01 @ 18:56:27 Sessions 1 Manual Loads 0 Difficulty Rogue Special Mode Winter2019/RPGLIKE Game No. 75 Rogue 36 Adventurer 5 Explorer 34 Win Type - Total 19 Types 10/0/4/4/1/0/0/0/0 Lore% 72 Gallery% 71 Achievement% 76 Wizard Run 0 Options --------- ASCII 0 Keyboard 0 Movement Mouse Keybinds 0 Fullscreen 1 Font 12/Terminus Map View 83x54 Tactical HUD 1 Map Filters NONE Filters NONE Steam 1 RUN: f7d5dbed-8b3f-4eac-8a83-a738fdf85324